[Event "Pervenstvo PFO 2023_Y19_Rapid"]
[Site "Samara region, Russia"]
[Date "2023.11.11"]
[Round "2.1"]
[White "Ivanov, Matvei"]
[Black "Mochalov, Dmitriy"]
[Result "1-0"]
[TimeControl "10:5"]
[WhiteFideId "54131987"]
[BlackFideId "44179634"]
[WhiteElo "1918"]
[BlackElo "2194"]

1. Nf3 {[%clk 00:10:09]} Nf6 {[%clk 00:10:06]} {[%emt 00:00:03]} 2. g3 {[%clk
00:10:13]} {[%emt 00:00:02]} b5 {[%clk 00:10:03]} {[%emt 00:00:08]} 3. Bg2
{[%clk 00:10:13]} {[%emt 00:00:06]} Bb7 {[%clk 00:10:06]} {[%emt 00:00:02]} 4.
O-O {[%clk 00:10:16]} {[%emt 00:00:01]} e6 {[%clk 00:10:09]} {[%emt 00:00:02]}
5. d3 {[%clk 00:10:17]} {[%emt 00:00:04]} d6 {[%clk 00:10:08]} {[%emt
00:00:06]} 6. e4 {[%clk 00:10:16]} {[%emt 00:00:07]} Nbd7 {[%clk 00:10:12]}
{[%emt 00:00:02]} 7. c3 {[%clk 00:09:25]} {[%emt 00:00:56]} Be7 {[%clk
00:10:14]} {[%emt 00:00:03]} 8. Nd4 {[%clk 00:09:15]} {[%emt 00:00:15]} c6
{[%clk 00:09:43]} {[%emt 00:00:36]} 9. f4 {[%clk 00:08:40]} {[%emt 00:00:40]}
a6 {[%clk 00:09:45]} {[%emt 00:00:03]} 10. Be3 {[%clk 00:08:36]} {[%emt
00:00:09]} Qc7 {[%clk 00:09:47]} {[%emt 00:00:03]} 11. Kh1 {[%clk 00:07:58]}
{[%emt 00:00:42]} c5 {[%clk 00:09:51]} {[%emt 00:00:02]} 12. Nf3 {[%clk
00:08:01]} {[%emt 00:00:01]} c4 {[%clk 00:09:55]} {[%emt 00:00:02]} 13. dxc4
{[%clk 00:06:59]} {[%emt 00:01:07]} bxc4 {[%clk 00:09:39]} {[%emt 00:00:21]} 14.
Nfd2 {[%clk 00:05:25]} {[%emt 00:01:38]} h5 {[%clk 00:09:23]} {[%emt 00:00:21]}
15. h3 {[%clk 00:04:45]} {[%emt 00:00:45]} d5 {[%clk 00:08:47]} {[%emt
00:00:42]} 16. e5 {[%clk 00:04:25]} {[%emt 00:00:24]} Ng8 {[%clk 00:08:51]}
{[%emt 00:00:02]} 17. Nf3 {[%clk 00:04:16]} {[%emt 00:00:14]} Nh6 {[%clk
00:08:52]} {[%emt 00:00:03]} 18. Nd4 {[%clk 00:04:19]} {[%emt 00:00:03]} Bc5
{[%clk 00:08:44]} {[%emt 00:00:13]} 19. Qxh5 {[%clk 00:02:59]} {[%emt
00:01:25]} g6 {[%clk 00:08:43]} {[%emt 00:00:06]} 20. Qf3 {[%clk 00:02:54]}
{[%emt 00:00:08]} Nf5 {[%clk 00:08:30]} {[%emt 00:00:19]} 21. Nxf5 {[%clk
00:02:50]} {[%emt 00:00:10]} gxf5 {[%clk 00:08:32]} {[%emt 00:00:02]} 22. b4
{[%clk 00:02:19]} {[%emt 00:00:38]} Bb6 {[%clk 00:06:28]} {[%emt 00:02:09]} 23.
Na3 {[%clk 00:01:48]} {[%emt 00:00:36]} Rb8 {[%clk 00:06:24]} {[%emt 00:00:09]}
24. Bd4 {[%clk 00:01:18]} {[%emt 00:00:34]} Bxd4 {[%clk 00:06:25]} {[%emt
00:00:04]} 25. cxd4 {[%clk 00:01:22]} Bc6 {[%clk 00:06:13]} {[%emt 00:00:18]}
26. Rab1 {[%clk 00:00:32]} {[%emt 00:00:56]} Ba8 {[%clk 00:05:57]} {[%emt
00:00:21]} 27. Kh2 {[%clk 00:00:34]} {[%emt 00:00:03]} Qa7 {[%clk 00:05:51]}
{[%emt 00:00:11]} 28. Nc2 {[%clk 00:00:37]} {[%emt 00:00:02]} Nb6 {[%clk
00:05:48]} {[%emt 00:00:08]} 29. Qa3 {[%clk 00:00:31]} {[%emt 00:00:11]} Qe7
{[%clk 00:05:22]} {[%emt 00:00:30]} 30. Qxa6 {[%clk 00:00:25]} {[%emt
00:00:12]} O-O {[%clk 00:05:14]} {[%emt 00:00:13]} 31. b5 {[%clk 00:00:23]}
{[%emt 00:00:07]} c3 {[%clk 00:05:18]} {[%emt 00:00:01]} 32. Rb3 {[%clk
00:00:18]} {[%emt 00:00:09]} Rfc8 {[%clk 00:05:21]} {[%emt 00:00:02]} 33. Rf3
{[%clk 00:00:22]} Nc4 {[%clk 00:05:23]} {[%emt 00:00:02]} 34. Rfxc3 {[%clk
00:00:22]} {[%emt 00:00:06]} Bb7 {[%clk 00:05:27]} {[%emt 00:00:01]} 35. Qa4
{[%clk 00:00:20]} {[%emt 00:00:07]} Ra8 {[%clk 00:05:29]} {[%emt 00:00:03]} 36.
Qb4 {[%clk 00:00:23]} {[%emt 00:00:02]} Qd7 {[%clk 00:05:26]} {[%emt 00:00:07]}
37. a4 {[%clk 00:00:24]} {[%emt 00:00:04]} Rcb8 {[%clk 00:05:31]} 38. Ne3
{[%clk 00:00:25]} {[%emt 00:00:03]} Nd2 {[%clk 00:05:31]} {[%emt 00:00:05]} 39.
Rb2 {[%clk 00:00:25]} {[%emt 00:00:05]} Ne4 {[%clk 00:05:34]} {[%emt 00:00:02]}
40. Rc1 {[%clk 00:00:19]} {[%emt 00:00:11]} Rc8 {[%clk 00:05:36]} {[%emt
00:00:03]} 41. Rbc2 {[%clk 00:00:23]} Rxc2 {[%clk 00:05:39]} {[%emt 00:00:03]}
42. Rxc2 {[%clk 00:00:28]} Rc8 {[%clk 00:05:41]} {[%emt 00:00:02]} 43. Rxc8+
{[%clk 00:00:12]} {[%emt 00:00:20]} Qxc8 {[%clk 00:05:46]} 44. Bxe4 {[%clk
00:00:15]} {[%emt 00:00:01]} dxe4 {[%clk 00:05:49]} {[%emt 00:00:02]} 45. Qc5
Qd8 {[%emt 00:00:01]} 46. b6 {[%clk 00:00:22]} {[%emt 00:00:03]} Qd7 {[%clk
00:05:58]} 47. Qc7 {[%clk 00:00:08]} {[%emt 00:00:18]} Qxd4 {[%clk 00:06:02]}
48. Ng2 {[%clk 00:00:12]} {[%emt 00:00:02]} Qd5 {[%clk 00:06:04]} {[%emt
00:00:03]} 49. Qd6 {[%clk 00:00:11]} {[%emt 00:00:05]} Qxd6 {[%emt 00:01:03]}
50. exd6 {[%emt 00:00:01]} Kf8 {[%clk 00:05:12]} 51. Ne3 {[%clk 00:00:17]}
{[%emt 00:00:02]} Ke8 {[%clk 00:05:13]} {[%emt 00:00:04]} 52. a5 {[%clk
00:00:17]} {[%emt 00:00:04]} Kd7 {[%clk 00:05:17]} {[%emt 00:00:02]} 53. Nc4
{[%clk 00:00:21]} f6 {[%clk 00:05:21]} 54. h4 {[%clk 00:00:25]} {[%emt
00:00:02]} Ba6 {[%clk 00:05:25]} 55. h5 {[%clk 00:00:26]} {[%emt 00:00:03]} Kc6
{[%clk 00:05:29]} 56. h6 {[%clk 00:00:26]} {[%emt 00:00:04]} Bxc4 {[%clk
00:05:34]} 57. h7 {[%clk 00:00:31]} e3 {[%clk 00:05:37]} {[%emt 00:00:01]} 58.
Kg1 {[%clk 00:00:30]} {[%emt 00:00:05]} e2 {[%clk 00:05:41]} {[%emt 00:00:01]}
59. Kf2 {[%clk 00:00:35]} e5 {[%clk 00:05:45]} {[%emt 00:00:02]} 60. h8=Q
{[%clk 00:00:38]} e4 {[%clk 00:05:49]} {[%emt 00:00:01]} 61. Qxf6 {[%clk
00:00:41]} {[%emt 00:00:03]} e3+ {[%clk 00:05:54]} 62. Ke1 {[%clk 00:00:45]}
Bb3 {[%clk 00:10:05]} {[%emt 00:00:03]} 1-0

[Event "Pervenstvo PFO 2023_Y19_Rapid"]
[Site "Samara region, Russia"]
[Date "2023.11.11"]
[Round "2.2"]
[White "Konstantinov, Nikita"]
[Black "Siyalov, Mikhail"]
[Result "1-0"]
[TimeControl "10:5"]
[WhiteFideId "44165250"]
[BlackFideId "24276359"]
[WhiteElo "2074"]
[BlackElo "1691"]

1. e4 {[%clk 00:10:08]} {[%emt 00:00:01]} d5 {[%clk 00:10:08]} {[%emt
00:00:02]} 2. exd5 {[%clk 00:10:12]} {[%emt 00:00:01]} Qxd5 {[%clk 00:10:12]}
{[%emt 00:00:02]} 3. Nc3 {[%clk 00:10:16]} Qa5 {[%clk 00:10:16]} 4. Nf3 {[%clk
00:10:20]} Nf6 {[%clk 00:10:19]} {[%emt 00:00:01]} 5. Be2 {[%clk 00:10:20]}
{[%emt 00:00:06]} Bg4 {[%clk 00:10:21]} {[%emt 00:00:02]} 6. h3 {[%clk
00:10:20]} {[%emt 00:00:05]} Bh5 {[%clk 00:10:24]} {[%emt 00:00:02]} 7. O-O
{[%clk 00:10:21]} {[%emt 00:00:04]} e6 {[%clk 00:10:27]} {[%emt 00:00:02]} 8.
d4 {[%clk 00:10:17]} {[%emt 00:00:10]} Nbd7 {[%clk 00:10:24]} {[%emt 00:00:07]}
9. Bd2 {[%clk 00:09:44]} {[%emt 00:00:38]} c6 {[%clk 00:10:10]} {[%emt
00:00:20]} 10. Ne4 {[%clk 00:09:19]} {[%emt 00:00:30]} Qc7 {[%clk 00:10:04]}
{[%emt 00:00:11]} 11. Nxf6+ {[%clk 00:09:20]} {[%emt 00:00:04]} Nxf6 {[%clk
00:09:56]} {[%emt 00:00:13]} 12. Ne5 {[%clk 00:09:17]} {[%emt 00:00:08]} Bxe2
{[%clk 00:09:49]} {[%emt 00:00:12]} 13. Qxe2 {[%clk 00:09:20]} {[%emt
00:00:02]} Bd6 {[%clk 00:09:50]} {[%emt 00:00:03]} 14. Bg5 {[%clk 00:08:54]}
{[%emt 00:00:31]} O-O {[%clk 00:08:42]} {[%emt 00:01:13]} 15. Rad1 {[%clk
00:07:08]} {[%emt 00:01:51]} Nd7 {[%clk 00:08:17]} {[%emt 00:00:31]} 16. Nd3
{[%clk 00:06:51]} {[%emt 00:00:21]} e5 {[%clk 00:06:56]} {[%emt 00:01:26]} 17.
dxe5 {[%clk 00:05:44]} {[%emt 00:01:12]} Nxe5 {[%clk 00:06:55]} {[%emt
00:00:06]} 18. Rfe1 {[%clk 00:05:25]} {[%emt 00:00:24]} Rae8 {[%clk 00:04:36]}
{[%emt 00:02:24]} 19. Qe4 {[%clk 00:04:40]} {[%emt 00:00:50]} Nxd3 {[%clk
00:03:50]} {[%emt 00:00:51]} 20. Qxd3 {[%clk 00:04:43]} {[%emt 00:00:02]} Rxe1+
{[%clk 00:02:55]} {[%emt 00:01:00]} 21. Rxe1 {[%clk 00:04:47]} Be5 {[%clk
00:01:12]} {[%emt 00:01:46]} 22. c3 {[%clk 00:04:07]} {[%emt 00:00:47]} f6
{[%clk 00:01:01]} {[%emt 00:00:17]} 23. Be3 {[%clk 00:04:05]} {[%emt 00:00:07]}
Rd8 {[%clk 00:00:20]} {[%emt 00:00:46]} 24. Qe4 {[%clk 00:03:48]} {[%emt
00:00:22]} b6 {[%clk 00:00:10]} {[%emt 00:00:15]} 25. Qc4+ {[%clk 00:03:19]}
{[%emt 00:00:34]} Kh8 {[%clk 00:00:07]} {[%emt 00:00:08]} 26. a4 {[%clk
00:03:18]} {[%emt 00:00:05]} Qd7 {[%clk 00:00:09]} {[%emt 00:00:03]} 27. Qa6
{[%clk 00:01:56]} {[%emt 00:01:27]} c5 {[%clk 00:00:07]} {[%emt 00:00:07]} 28.
a5 {[%clk 00:01:52]} {[%emt 00:00:09]} Qd1 {[%clk 00:00:07]} {[%emt 00:00:06]}
29. Kf1 {[%clk 00:01:33]} {[%emt 00:00:23]} Qd3+ {[%clk 00:00:11]} 30. Qxd3
{[%clk 00:01:37]} {[%emt 00:00:02]} Rxd3 {[%clk 00:00:15]} 31. axb6 {[%clk
00:01:35]} {[%emt 00:00:07]} axb6 {[%clk 00:00:19]} 32. f4 {[%clk 00:01:35]}
{[%emt 00:00:05]} Bc7 {[%clk 00:00:11]} {[%emt 00:00:13]} 33. Bxc5 {[%clk
00:01:25]} {[%emt 00:00:15]} Kg8 {[%clk 00:00:14]} {[%emt 00:00:02]} 34. Re8+
{[%clk 00:01:10]} {[%emt 00:00:20]} 1-0

[Event "Pervenstvo PFO 2023_Y19_Rapid"]
[Site "Samara region, Russia"]
[Date "2023.11.11"]
[Round "2.3"]
[White "Tarasenko, Iaroslav"]
[Black "Berezin, Zachar"]
[Result "1-0"]
[TimeControl "10:5"]
[WhiteFideId "44196008"]
[BlackFideId "44139322"]
[WhiteElo "2080"]
[BlackElo "1658"]

1. e4 {[%clk 00:10:05]} {[%emt 00:02:18]} d6 {[%clk 00:10:03]} {[%emt
00:00:22]} 2. d4 {[%clk 00:10:13]} e5 {[%clk 00:10:07]} {[%emt 00:00:01]} 3.
Nf3 {[%clk 00:10:13]} {[%emt 00:00:04]} Nd7 {[%clk 00:10:11]} 4. Bd3 {[%clk
00:10:14]} {[%emt 00:00:05]} Be7 {[%clk 00:10:13]} {[%emt 00:00:04]} 5. O-O
{[%clk 00:10:17]} {[%emt 00:00:02]} Ngf6 {[%clk 00:10:17]} {[%emt 00:00:01]} 6.
c3 {[%clk 00:10:20]} {[%emt 00:00:02]} O-O {[%clk 00:10:20]} {[%emt 00:00:01]}
7. Bg5 {[%clk 00:10:19]} {[%emt 00:00:06]} c6 {[%clk 00:10:23]} {[%emt
00:00:02]} 8. Nbd2 {[%clk 00:10:23]} h6 {[%clk 00:10:28]} 9. Bh4 {[%clk
00:10:27]} Qc7 {[%clk 00:10:23]} {[%emt 00:00:11]} 10. Re1 {[%clk 00:10:14]}
{[%emt 00:00:18]} Rd8 {[%clk 00:10:22]} {[%emt 00:00:05]} 11. Rc1 {[%clk
00:10:16]} {[%emt 00:00:03]} Nf8 {[%clk 00:10:26]} {[%emt 00:00:01]} 12. Bg3
{[%clk 00:09:32]} {[%emt 00:00:49]} Ng6 {[%clk 00:10:19]} {[%emt 00:00:13]} 13.
Nh4 {[%clk 00:09:13]} {[%emt 00:00:23]} Nxh4 {[%clk 00:09:24]} {[%emt
00:01:00]} 14. Bxh4 {[%clk 00:09:17]} {[%emt 00:00:01]} Bg4 {[%clk 00:08:55]}
{[%emt 00:00:34]} 15. Qc2 {[%clk 00:09:13]} {[%emt 00:00:09]} Bh5 {[%clk
00:08:45]} {[%emt 00:00:15]} 16. Nc4 {[%clk 00:08:40]} {[%emt 00:00:37]} Bg6
{[%clk 00:04:37]} {[%emt 00:04:13]} 17. a4 {[%clk 00:08:32]} {[%emt 00:00:13]}
Nh5 {[%clk 00:03:53]} {[%emt 00:00:49]} 18. Bxe7 {[%clk 00:08:26]} {[%emt
00:00:11]} Qxe7 {[%clk 00:03:57]} 19. g3 {[%clk 00:08:06]} {[%emt 00:00:26]}
Qf6 {[%clk 00:02:58]} {[%emt 00:01:04]} 20. dxe5 {[%clk 00:06:37]} {[%emt
00:01:34]} dxe5 {[%clk 00:03:01]} {[%emt 00:00:02]} 21. Ne3 {[%clk 00:06:41]}
Qf3 {[%clk 00:02:45]} {[%emt 00:00:20]} 22. Be2 {[%clk 00:06:41]} {[%emt
00:00:05]} Qf6 {[%clk 00:02:32]} {[%emt 00:00:18]} 23. Qb3 {[%clk 00:06:01]}
{[%emt 00:00:46]} b6 {[%clk 00:02:20]} {[%emt 00:00:17]} 24. Qc4 {[%clk
00:05:57]} {[%emt 00:00:09]} Rac8 {[%clk 00:02:18]} {[%emt 00:00:07]} 25. Bg4
{[%clk 00:05:47]} {[%emt 00:00:15]} Rc7 {[%clk 00:01:48]} {[%emt 00:00:35]} 26.
Rcd1 {[%clk 00:05:34]} {[%emt 00:00:18]} Rxd1 {[%clk 00:01:42]} {[%emt
00:00:10]} 27. Rxd1 {[%clk 00:05:37]} Qg5 {[%clk 00:01:37]} {[%emt 00:00:11]}
28. Rd6 {[%clk 00:05:12]} {[%emt 00:00:30]} Nf4 {[%clk 00:00:55]} {[%emt
00:00:47]} 29. h4 {[%clk 00:04:13]} {[%emt 00:01:05]} Qe7 {[%clk 00:00:59]} 30.
Rxc6 {[%clk 00:04:13]} {[%emt 00:00:05]} Rd7 {[%clk 00:00:56]} {[%emt
00:00:08]} 31. Bxd7 {[%clk 00:03:54]} {[%emt 00:00:23]} Qxd7 {[%clk 00:01:00]}
32. gxf4 {[%clk 00:01:26]} {[%emt 00:02:33]} exf4 {[%clk 00:01:03]} {[%emt
00:00:02]} 33. Rxg6 {[%clk 00:01:10]} {[%emt 00:00:21]} fxe3 {[%clk 00:00:59]}
{[%emt 00:00:10]} 34. fxe3 {[%clk 00:01:06]} {[%emt 00:00:09]} Qd1+ {[%clk
00:00:53]} {[%emt 00:00:10]} 35. Kh2 {[%clk 00:00:56]} {[%emt 00:00:15]} Qh5
{[%clk 00:00:32]} {[%emt 00:00:27]} 36. Rg3 {[%clk 00:00:38]} {[%emt 00:00:22]}
Qxh4+ {[%clk 00:00:36]} {[%emt 00:00:02]} 37. Kg2 {[%clk 00:00:42]} Qd8 {[%clk
00:00:22]} {[%emt 00:00:19]} 38. Qd4 {[%clk 00:00:44]} {[%emt 00:00:03]} 1-0

[Event "Pervenstvo PFO 2023_Y19_Rapid"]
[Site "Samara region, Russia"]
[Date "2023.11.11"]
[Round "2.4"]
[White "Lydin, Vladislav"]
[Black "Galyaviev, Samat"]
[Result "1-0"]
[TimeControl "10:5"]
[WhiteFideId "44195990"]
[BlackFideId "44168470"]
[WhiteElo "2005"]
[BlackElo "2030"]

1. Nf3 {[%clk 00:10:07]} {[%emt 00:00:02]} Nf6 {[%clk 00:10:09]} {[%emt
00:00:02]} 2. g3 {[%clk 00:10:11]} {[%emt 00:00:01]} b5 {[%clk 00:10:12]}
{[%emt 00:00:02]} 3. Bg2 {[%clk 00:10:12]} {[%emt 00:00:03]} Bb7 {[%clk
00:10:16]} {[%emt 00:00:01]} 4. O-O {[%clk 00:10:15]} {[%emt 00:00:02]} e6
{[%clk 00:10:19]} {[%emt 00:00:02]} 5. d3 {[%clk 00:10:19]} d5 {[%clk
00:10:22]} {[%emt 00:00:03]} 6. b3 {[%clk 00:10:16]} {[%emt 00:00:08]} c5
{[%clk 00:10:21]} {[%emt 00:00:06]} 7. c4 {[%clk 00:10:18]} {[%emt 00:00:04]}
dxc4 {[%clk 00:10:23]} {[%emt 00:00:03]} 8. bxc4 {[%clk 00:10:19]} {[%emt
00:00:02]} b4 {[%clk 00:10:12]} {[%emt 00:00:18]} 9. Bb2 {[%clk 00:09:53]}
{[%emt 00:00:30]} Be7 {[%clk 00:10:12]} {[%emt 00:00:05]} 10. Qc2 {[%clk
00:09:49]} {[%emt 00:00:09]} O-O {[%clk 00:10:13]} {[%emt 00:00:05]} 11. Nbd2
{[%clk 00:09:53]} Nc6 {[%clk 00:09:56]} {[%emt 00:00:22]} 12. e4 {[%clk
00:09:46]} {[%emt 00:00:12]} Nd7 {[%clk 00:09:32]} {[%emt 00:00:28]} 13. e5
{[%clk 00:09:44]} {[%emt 00:00:07]} Qc7 {[%clk 00:08:52]} {[%emt 00:00:45]} 14.
Rfe1 {[%clk 00:09:43]} {[%emt 00:00:06]} a5 {[%clk 00:08:50]} {[%emt 00:00:07]}
15. a4 {[%clk 00:09:35]} {[%emt 00:00:13]} bxa3 {[%clk 00:08:46]} {[%emt
00:00:10]} 16. Rxa3 {[%clk 00:09:30]} {[%emt 00:00:09]} Nb4 {[%clk 00:08:50]}
{[%emt 00:00:03]} 17. Qc3 {[%clk 00:09:16]} {[%emt 00:00:18]} Rfd8 {[%clk
00:08:13]} {[%emt 00:00:43]} 18. Ne4 {[%clk 00:09:14]} {[%emt 00:00:03]} Bxe4
{[%clk 00:08:11]} {[%emt 00:00:10]} 19. Rxe4 {[%clk 00:09:13]} {[%emt
00:00:05]} Rab8 {[%clk 00:07:38]} {[%emt 00:00:39]} 20. Bc1 {[%clk 00:08:33]}
{[%emt 00:00:45]} Nf8 {[%clk 00:07:33]} {[%emt 00:00:09]} 21. d4 {[%clk
00:08:19]} {[%emt 00:00:20]} cxd4 {[%clk 00:07:04]} {[%emt 00:00:34]} 22. Nxd4
{[%clk 00:07:16]} {[%emt 00:01:08]} Rbc8 {[%clk 00:05:47]} {[%emt 00:01:22]} 23.
Be3 {[%clk 00:04:24]} {[%emt 00:02:57]} Nd5 {[%clk 00:03:57]} {[%emt 00:01:56]}
24. cxd5 {[%clk 00:04:15]} {[%emt 00:00:13]} exd5 {[%clk 00:04:00]} {[%emt
00:00:02]} 25. Qxc7 {[%clk 00:03:21]} {[%emt 00:00:58]} Rxc7 {[%clk 00:04:02]}
{[%emt 00:00:04]} 26. Rg4 {[%clk 00:03:19]} {[%emt 00:00:07]} Bxa3 {[%clk
00:03:51]} {[%emt 00:00:16]} 27. Nb5 {[%clk 00:03:23]} d4 {[%clk 00:02:40]}
{[%emt 00:01:17]} 28. Bg5 {[%clk 00:02:48]} {[%emt 00:00:39]} Be7 {[%clk
00:01:39]} {[%emt 00:01:06]} 29. Nxc7 {[%clk 00:02:45]} {[%emt 00:00:07]} Bxg5
{[%clk 00:01:43]} {[%emt 00:00:02]} 30. Rxg5 {[%clk 00:02:47]} {[%emt
00:00:03]} d3 {[%clk 00:01:47]} 31. Bf3 {[%clk 00:02:07]} {[%emt 00:00:45]} d2
{[%clk 00:01:14]} {[%emt 00:00:38]} 32. Bd1 {[%clk 00:01:14]} {[%emt 00:00:58]}
Rc8 {[%clk 00:00:21]} {[%emt 00:00:59]} 33. Nd5 {[%clk 00:01:18]} Rc1 {[%clk
00:00:25]} 34. Ne3 {[%clk 00:01:22]} {[%emt 00:00:01]} Ne6 {[%clk 00:00:28]}
{[%emt 00:00:02]} 35. Rg4 {[%clk 00:01:24]} {[%emt 00:00:02]} h5 {[%clk
00:00:32]} {[%emt 00:00:02]} 36. Ra4 {[%clk 00:00:53]} {[%emt 00:00:35]} g6
{[%clk 00:00:13]} {[%emt 00:00:24]} 37. Kg2 {[%clk 00:00:44]} {[%emt 00:00:14]}
h4 {[%clk 00:00:09]} {[%emt 00:00:10]} 38. Ra2 {[%clk 00:00:41]} {[%emt
00:00:07]} h3+ {[%clk 00:00:10]} {[%emt 00:00:04]} 39. Kxh3 {[%clk 00:00:40]}
{[%emt 00:00:06]} Ng5+ {[%clk 00:00:18]} {[%emt 00:00:25]} 1-0

[Event "Pervenstvo PFO 2023_Y19_Rapid"]
[Site "Samara region, Russia"]
[Date "2023.11.11"]
[Round "2.5"]
[White "Kunakkuzin, Rinat"]
[Black "Nasyrov, Danil R."]
[Result "1-0"]
[TimeControl "10:5"]
[WhiteFideId "54126584"]
[BlackFideId "34290257"]
[WhiteElo "1925"]
[BlackElo "1234"]

1. a3 {[%clk 00:10:08]} {[%emt 00:00:02]} a6 {[%clk 00:10:07]} {[%emt
00:00:03]} 2. d4 {[%clk 00:10:00]} {[%emt 00:00:13]} d5 {[%clk 00:10:08]}
{[%emt 00:00:05]} 3. Nf3 {[%clk 00:10:03]} {[%emt 00:00:01]} Nf6 {[%clk
00:10:12]} {[%emt 00:00:01]} 4. e3 {[%clk 00:10:07]} Bf5 {[%clk 00:09:54]}
{[%emt 00:00:23]} 5. Be2 {[%clk 00:10:10]} {[%emt 00:00:02]} e6 {[%clk
00:09:57]} {[%emt 00:00:02]} 6. O-O {[%clk 00:10:13]} {[%emt 00:00:01]} Be7
{[%clk 00:10:01]} {[%emt 00:00:02]} 7. Nbd2 {[%clk 00:10:10]} {[%emt 00:00:09]}
O-O {[%clk 00:10:03]} {[%emt 00:00:03]} 8. b3 {[%clk 00:10:04]} {[%emt
00:00:11]} c5 {[%clk 00:10:04]} {[%emt 00:00:03]} 9. Bb2 {[%clk 00:10:07]}
{[%emt 00:00:02]} b6 {[%clk 00:09:53]} {[%emt 00:00:16]} 10. c4 {[%clk
00:09:36]} {[%emt 00:00:36]} Nbd7 {[%clk 00:09:33]} {[%emt 00:00:25]} 11. Nh4
{[%clk 00:09:04]} {[%emt 00:00:37]} Bg6 {[%clk 00:09:23]} {[%emt 00:00:14]} 12.
Nxg6 {[%clk 00:09:07]} {[%emt 00:00:02]} hxg6 {[%clk 00:09:26]} {[%emt
00:00:03]} 13. Nf3 {[%clk 00:09:03]} {[%emt 00:00:09]} dxc4 {[%clk 00:09:11]}
{[%emt 00:00:20]} 14. Bxc4 {[%clk 00:08:56]} {[%emt 00:00:12]} b5 {[%clk
00:09:08]} {[%emt 00:00:08]} 15. Be2 {[%clk 00:09:00]} {[%emt 00:00:02]} Qb6
{[%clk 00:09:05]} {[%emt 00:00:07]} 16. a4 {[%clk 00:08:44]} {[%emt 00:00:21]}
Rac8 {[%clk 00:08:56]} {[%emt 00:00:14]} 17. axb5 {[%clk 00:08:40]} {[%emt
00:00:09]} axb5 {[%clk 00:08:59]} {[%emt 00:00:01]} 18. dxc5 {[%clk 00:08:32]}
{[%emt 00:00:14]} Nxc5 {[%clk 00:08:51]} {[%emt 00:00:13]} 19. Nd4 {[%clk
00:08:13]} {[%emt 00:00:24]} b4 {[%clk 00:08:42]} {[%emt 00:00:14]} 20. Bc4
{[%clk 00:08:00]} {[%emt 00:00:18]} Nfe4 {[%clk 00:08:21]} {[%emt 00:00:26]} 21.
Qe1 {[%clk 00:07:03]} {[%emt 00:01:02]} Ra8 {[%clk 00:07:28]} {[%emt 00:00:58]}
22. f3 {[%clk 00:06:28]} {[%emt 00:00:39]} Nd6 {[%clk 00:07:31]} {[%emt
00:00:02]} 23. Qe2 {[%clk 00:06:28]} {[%emt 00:00:05]} Nxc4 {[%clk 00:07:30]}
{[%emt 00:00:07]} 24. Qxc4 {[%clk 00:06:28]} {[%emt 00:00:05]} Rfc8 {[%clk
00:07:09]} {[%emt 00:00:25]} 25. Rxa8 {[%clk 00:05:26]} {[%emt 00:01:08]} Rxa8
{[%clk 00:07:13]} {[%emt 00:00:01]} 26. Nc2 {[%clk 00:03:22]} {[%emt 00:02:08]}
Ra2 {[%clk 00:06:37]} {[%emt 00:00:41]} 27. Bd4 {[%clk 00:03:20]} {[%emt
00:00:07]} Qa5 {[%clk 00:05:53]} {[%emt 00:00:49]} 28. Nxb4 {[%clk 00:02:19]}
{[%emt 00:01:07]} Nxb3 {[%clk 00:05:38]} {[%emt 00:00:20]} 29. Nxa2 {[%clk
00:02:11]} {[%emt 00:00:12]} Qxa2 {[%clk 00:05:39]} {[%emt 00:00:03]} 30. Ra1
{[%clk 00:01:34]} {[%emt 00:00:42]} Qd2 {[%clk 00:04:20]} {[%emt 00:01:24]} 31.
Qxb3 {[%clk 00:01:28]} {[%emt 00:00:11]} Bh4 {[%clk 00:04:14]} {[%emt
00:00:10]} 32. Qb2 {[%clk 00:01:16]} {[%emt 00:00:17]} Qd3 {[%clk 00:03:42]}
{[%emt 00:00:37]} 33. g3 {[%clk 00:01:16]} {[%emt 00:00:05]} Be7 {[%clk
00:03:14]} {[%emt 00:00:33]} 34. Kf2 {[%clk 00:01:02]} {[%emt 00:00:20]} Bg5
{[%clk 00:03:06]} {[%emt 00:00:13]} 35. Qe2 {[%clk 00:00:56]} {[%emt 00:00:11]}
Qb3 {[%clk 00:02:51]} {[%emt 00:00:20]} 36. Ra8+ {[%clk 00:00:54]} {[%emt
00:00:06]} Kh7 {[%clk 00:02:55]} {[%emt 00:00:02]} 37. Ra7 {[%clk 00:00:58]}
{[%emt 00:00:01]} f6 {[%clk 00:02:14]} {[%emt 00:00:46]} 38. h4 {[%clk
00:00:53]} {[%emt 00:00:09]} Bh6 {[%clk 00:01:27]} {[%emt 00:00:52]} 39. Bxf6
{[%clk 00:00:50]} {[%emt 00:00:08]} Qb1 {[%clk 00:00:27]} {[%emt 00:01:05]} 40.
Kg2 {[%clk 00:00:41]} {[%emt 00:00:14]} Qb6 {[%clk 00:00:26]} {[%emt 00:00:06]}
41. Bd4 {[%clk 00:00:42]} {[%emt 00:00:05]} Qd6 {[%clk 00:00:17]} {[%emt
00:00:13]} 42. Qb2 {[%clk 00:00:34]} {[%emt 00:00:13]} 1-0